[Event "3rd President Cup-A 2024"]
[Site "Tashkent"]
[Date "2024.11.25"]
[Round "5.15"]
[White "Panda Sambit"]
[Black "Saydaliev, Saidakbar"]
[Result "1/2-1/2"]
[ECO "B45"]
[WhiteElo "2380"]
[BlackElo "2473"]
[Annotator "RC"]
[PlyCount "116"]
[EventDate "2024.11.22"]
[EventType "swiss"]
[EventCountry "UZB"]
[SourceTitle "playchess.com"]
[Source "ChessBase"]
[SourceQuality "1"]
[TimeControl "5400+30"]

1. e4 {[%emt 0:04:33]} c5 {[%emt 0:01:51]} 2. Nf3 {[%emt 0:00:07]} Nc6 {[%emt 0:04:03]} 3. d4 {[%emt 0:00:11]} cxd4 {[%emt 0:02:30]} 4. Nxd4 {[%emt 0:00:02]} Nf6 {[%emt 0:01:35]} 5. Nc3 {[%emt 0:00:05]} e6 {[%emt 0:00:03]} 6. Be2 {[%emt 0:00:04]} Bb4 {[%emt 0:03:59]} 7. O-O {[%emt 0:00:06]} O-O {[%emt 0:03:59]} 8. Nxc6 {[%emt 0:05:26]} bxc6 {[%emt 0:04:52]} 9. e5 {[%emt 0:00:51]} Nd5 {[%emt 0:00:20]} 10. Ne4 {[%emt 0:00:38]} f5 {[%emt 0:00:16]} 11. Nd6 {[%emt 0:01:12]} Bxd6 {[%emt 0:05:26]} 12. exd6 {[%emt 0:00:02]} Qb6 {[%emt 0:01:43]} 13. c4 {[%emt 0:31:47]} Nf6 {[%emt 0:00:21]} 14. b3 {[%emt 0:01:06]} c5 {[%emt 0:13:17]} 15. Bb2 {[%emt 0:00:07]} Ne4 {[%emt 0:07:49]} 16. Be5 {[%emt 0:05:45]} Ng5 {[%emt 0:00:13]} 17. Qd3 {[%emt 0:12:09]} Nf7 {[%emt 0:03:22]} 18. Bb2 {[%emt 0:00:31]} Qxd6 {[%emt 0:01:54]} 19. Qc3 {[%emt 0:00:17]} e5 {[%emt 0:01:28]} 20. Bf3 {[%emt 0:04:38]} Rb8 {[%emt 0:01:33]} 21. Bd5 {[%emt 0:02:25]} Bb7 {[%emt 0:00:00]} 22. Bxf7+ {[%emt 0:15:32]} Rxf7 {[%emt 0:03:24]} 23. Qxe5 {[%emt 0:00:12]} Qf8 {[%emt 0:03:59]} 24. Rfe1 {[%emt 0:01:24]} Rc8 {[%emt 0:05:44]} 25. Rad1 {[%emt 0:01:19]} h6 {[%emt 0:05:06]} 26. f3 {[%emt 0:06:45]} Kh7 {[%emt 0:00:40]} 27. h4 {[%emt 0:00:57]} Qd8 {[%emt 0:03:36]} 28. Qf4 {[%emt 0:00:54]} Rc6 {[%emt 0:05:13]} 29. Rd3 {[%emt 0:03:54]} Qa5 {[%emt 0:05:35]} 30. Re2 {[%emt 0:01:48]} Qxa2 {[%emt 0:01:14]} 31. Kh2 {[%emt 0:00:04]} Qb1 {[%emt 0:01:57]} 32. Qd2 {[%emt 0:00:38]} Re6 {[%emt 0:00:51]} 33. Be5 {[%emt 0:00:56]} d6 {[%emt 0:04:34]} 34. Rxd6 {[%emt 0:00:30]} Rxd6 {[%emt 0:01:42]} 35. Qxd6 {[%emt 0:00:15]} Qf1 {[%emt 0:00:53]} 36. Rd2 {[%emt 0:00:36]} Qe1 {[%emt 0:00:08]} 37. Bg3 {[%emt 0:00:40]} Qe3 {[%emt 0:00:01]} 38. Bf2 {[%emt 0:00:30]} Qxb3 {[%emt 0:02:26]} 39. h5 {[%emt 0:00:31]} Qxc4 {[%emt 0:00:56]} 40. Qg6+ {[%emt 0:00:23]} Kg8 {[%emt 0:00:00]} 41. Bg3 {[%emt 0:00:33]} f4 {[%emt 0:01:34]} 42. Bh4 {[%emt 0:00:17]} Bd5 {[%emt 0:00:10]} 43. Rb2 {[%emt 0:00:39]} Rf8 {[%emt 0:00:43]} 44. Be7 {[%emt 0:00:29]} Bf7 {[%emt 0:00:28]} 45. Qg4 {[%emt 0:00:33]} Be6 {[%emt 0:00:15]} 46. Qg6 {[%emt 0:00:32]} Bf5 {[%emt 0:00:20]} 47. Qd6 {[%emt 0:00:33]} Re8 {[%emt 0:00:01]} 48. Rb7 {[%emt 0:00:31]} Qf7 {[%emt 0:00:10]} 49. Rxa7 {[%emt 0:00:27]} c4 {[%emt 0:00:46]} 50. Qxf4 {[%emt 0:00:34]} c3 {[%emt 0:01:19]} 51. Bc5 {[%emt 0:00:25]} Qxh5+ {[%emt 0:00:20]} 52. Kg1 {[%emt 0:00:25]} Bd3 {[%emt 0:01:17]} 53. Bd4 {[%emt 0:00:32]} Re1+ {[%emt 0:00:24]} 54. Kf2 {[%emt 0:00:05]} Re2+ {[%emt 0:00:07]} 55. Kg1 {[%emt 0:00:56]} Re1+ {[%emt 0:00:31]} 56. Kf2 {[%emt 0:00:05]} Re2+ {[%emt 0:00:04]} 57. Kg1 {[%emt 0:00:49]} Re1+ {[%emt 0:01:20]} 58. Kf2 {[%emt 0:00:08]} Re2+ {[%emt 0:00:26]} 1/2-1/2

[Event "3rd President Cup-A 2024"]
[Site "Tashkent"]
[Date "2024.11.25"]
[Round "5.18"]
[White "Jubin Jimmy"]
[Black "Khusenkhojaev, Mustafokhuja"]
[Result "1/2-1/2"]
[ECO "D95"]
[WhiteElo "2453"]
[BlackElo "2339"]
[Annotator "TA"]
[PlyCount "106"]
[EventDate "2024.11.22"]
[EventType "swiss"]
[EventCountry "UZB"]
[SourceTitle "playchess.com"]
[Source "ChessBase"]
[SourceQuality "1"]
[TimeControl "5400+30"]

{[%evp 13,106,-6,0,-13,0,-9,0,-20,12,17,14,4,0,0,14,0,33,7,26,15,15,17,14,13,46,43,39,47,52,47,39,46,34,52,41,39,63,41,34,31,31,26,43,43,94,91,90,94,93,75,99,99,99,54,50,47,47,47,47,33,30,30,30,30,36,36,42,30,41,41,41,30,30,29,29,29,29,29,29,29,29,29,29,29,29,29,29,29,29,29,29,29,29,29,29]} 1. d4 {[%emt 0:01:12]} Nf6 {[%emt 0:00:13]} 2. c4 {[%emt 0:00:15]} g6 {[%emt 0:00:13]} 3. Nf3 {[%emt 0:00:29]} Bg7 {[%emt 0:00:18]} 4. Nc3 {[%emt 0:00:25]} d5 {[%emt 0:00:19]} 5. e3 {[%emt 0:00:15]} O-O {[%emt 0:00:24]} 6. Qb3 {[%emt 0:00:27]} e6 {[%emt 0:02:08]} 7. Be2 {[%emt 0:01:46]} b6 {[%emt 0:02:10]} 8. cxd5 {[%emt 0:00:33]} exd5 {[%emt 0:00:16]} 9. O-O {[%emt 0:00:11]} Bb7 {[%emt 0:01:39]} 10. Ne5 {[%emt 0:00:24] The position is equal.} Nbd7 {[%emt 0:02:14]} 11. f4 {[%emt 0:02:21]} c6 {[%emt 0:07:47]} 12. Bd2 {[%emt 0:19:36][%cal Bc1d2,Bd2e1,Be1h4][%mdl 32]} Ne8 {[%emt 0:08:09][%cal Bf6e8,Be8d6,Bd6f5][%mdl 32]} 13. Bf3 {[%emt 0:20:08]} Nd6 {[%emt 0:04:41]} 14. Rad1 {[%emt 0:01:52]} Nf6 {[%emt 0:08:59]} 15. Be1 {[%emt 0:03:42]} Qe7 {[%emt 0:07:19]} 16. Bh4 {[%emt 0:03:58][%cal Oe3e4]} Nf5 {[%emt 0:03:07][%csl LRe3,LRh4]} 17. Bf2 {[%emt 0:01:12]} Nd6 {[%emt 0:02:38]} 18. a4 {[%emt 0:05:24][%cal Oa4a5]} Rfc8 {[%emt 0:08:13]} 19. Rfe1 {[%emt 0:05:01]} Nfe4 {[%emt 0:09:25]} 20. Nxe4 {[%emt 0:01:28]} Nxe4 {[%emt 0:00:48]} 21. Bxe4 {[%emt 0:00:17]} dxe4 {[%emt 0:00:12] [#]} 22. Bh4 $1 {[%emt 0:01:26]} Qe6 {[%emt 0:04:07]} (22... Qe8 23. Rd2) 23. Qxe6 {[%emt 0:01:01]} fxe6 {[%emt 0:00:01] Black is weak on the dark squares} 24. Be7 {[%emt 0:06:17]} Ba6 {[%emt 0:13:15]} 25. Rd2 {[%emt 0:06:36] White is much more active.} Bxe5 {[%emt 0:02:39]} 26. fxe5 {[%emt 0:01:11]} Bc4 {[%emt 0:00:32]} 27. Bd6 {[%emt 0:02:47]} a6 {[%emt 0:00:52]} 28. a5 {[%emt 0:01:34]} b5 {[%emt 0:00:15]} (28... bxa5 $14 29. Ra1 Ra7) 29. Rc1 {[%emt 0:01:12]} Ra7 {[%emt 0:00:23]} 30. Rf2 {[%emt 0:00:21]} Rf7 {[%emt 0:01:11]} 31. Rcc2 {[%emt 0:00:39]} Rd8 {[%emt 0:00:30]} 32. Rxf7 {[%emt 0:01:17]} Kxf7 $16 {[%emt 0:00:10][%mdl 4096] Endgame. KRB-KRB} 33. Kf2 {[%emt 0:04:09]} Rd7 {[%emt 0:00:27]} 34. Ke1 {[%emt 0:03:08]} Ke8 {[%emt 0:00:06]} 35. Rf2 {[%emt 0:01:38]} Rf7 {[%emt 0:00:16]} 36. Rf6 {[%emt 0:00:15]} Rxf6 37. exf6 $14 {[%emt 0:00:01] KB-KB} Kf7 {[%emt 0:00:33]} 38. Be7 {[%emt 0:01:47]} g5 {[%emt 0:00:13]} 39. Kd2 {[%emt 0:01:22]} b4 {[%emt 0:00:06]} 40. Ke1 {[%emt 0:00:29]} h6 {[%emt 0:01:18]} 41. Kf2 {[%emt 0:00:09]} Bd3 {[%emt 0:00:08]} 42. Kg3 {[%emt 0:00:25]} Be2 {[%emt 0:00:09] White has an edge.} 43. h4 {[%emt 0:00:05]} (43. Bxb4 {simplifies} Kxf6 44. Bd6 Kf5 45. Kf2) 43... Bd1 {[%emt 0:00:09]} 44. hxg5 {[%emt 0:00:05]} hxg5 {[%emt 0:00:05]} 45. Kf2 {[%emt 0:00:19]} (45. Bxb4 {simplifies} Kxf6 46. Bd6 Bc2 47. Bc7) 45... Bb3 {[%emt 0:00:09]} 46. Ke1 {[%emt 0:00:08]} (46. Bxb4 {simplifies} Kxf6 47. Bd6 Bc4 48. Bh2) 46... Bc4 {[%emt 0:00:30]} 47. Kd2 {[%emt 0:00:08]} (47. Bxb4 {simplifies} Kxf6 48. Bd6 Bd3 49. Bc7) 47... Bf1 {[%emt 0:00:06]} 48. g3 {[%emt 0:00:04]} g4 {[%emt 0:00:07]} 49. Kc2 {[%emt 0:00:36][%cal Oc2b3] [#] Strongly threatening Kb3!} Bc4 {[%emt 0:00:06]} 50. Bxb4 {[%emt 0:00:04] Threatens to win with Kc3.} Kxf6 {[%emt 0:00:04]} 51. Kc3 {[%emt 0:00:02]} Bb5 {[%emt 0:00:20]} 52. Bd6 {[%emt 0:06:19]} Kf7 {[%emt 0:00:10]} 53. Kb4 {[%emt 0:00:00]} Ke8 {[%emt 0:00:09] Weighted Error Value: White=0.05 (flawless) /Black=0.06 (flawless) .  Mistake:       	---       	Black=1      Inaccurate:     	White=2     	Black=3      OK:         	White=22    	Black=20     Best:        	White=1     	Black=1} 1/2-1/2

[Event "3rd President Cup-A 2024"]
[Site "Tashkent"]
[Date "2024.11.25"]
[Round "5.19"]
[White "Pingin, Artem"]
[Black "Kurmangaliyeva, Liya"]
[Result "1-0"]
[ECO "E06"]
[WhiteElo "2447"]
[BlackElo "2324"]
[Annotator "RC"]
[PlyCount "85"]
[EventDate "2024.11.22"]
[EventType "swiss"]
[EventCountry "UZB"]
[SourceTitle "playchess.com"]
[Source "ChessBase"]
[SourceQuality "1"]
[TimeControl "5400+30"]

1. Nf3 {[%emt 1:31:00]} d5 {[%emt 1:31:00]} 2. g3 {[%emt 0:00:30]} Nf6 {[%emt 0:00:30]} 3. Bg2 {[%emt 0:00:30]} e6 {[%emt 0:00:30]} 4. c4 {[%emt 0:00:30]} Be7 {[%emt 0:00:30]} 5. d4 {[%emt 0:00:30]} O-O {[%emt 0:00:30]} 6. Nc3 {[%emt 0:00:30]} a5 {[%emt 0:00:30]} 7. O-O {[%emt 0:00:30]} dxc4 {[%emt 0:00:30]} 8. e3 {[%emt 0:00:30]} Nbd7 {[%emt 0:00:30]} 9. Qe2 {[%emt 0:00:30]} Nb6 {[%emt 0:00:30]} 10. Rd1 {[%emt 0:00:30]} Nfd5 {[%emt 0:00:30]} 11. Ne5 {[%emt 0:00:30]} Bd7 {[%emt 0:00:30]} 12. Rb1 {[%emt 0:00:30]} Qe8 {[%emt 0:00:30]} 13. Bd2 {[%emt 0:00:30]} Nxc3 {[%emt 0:00:30]} 14. Bxc3 {[%emt 0:00:30]} Ba4 {[%emt 0:00:30]} 15. Rdc1 {[%emt 0:00:30]} c6 {[%emt 0:00:30]} 16. Qe1 {[%emt 0:00:30]} Bd6 {[%emt 0:00:30]} 17. Bxa5 {[%emt 0:00:30]} Bxe5 {[%emt 0:00:30]} 18. dxe5 {[%emt 0:00:30]} Nd7 {[%emt 0:00:30]} 19. Bc7 {[%emt 0:00:30]} Qc8 {[%emt 0:00:30]} 20. Bd6 {[%emt 0:00:30]} Re8 {[%emt 0:00:30]} 21. Rxc4 {[%emt 0:00:30]} Bb5 {[%emt 0:00:30]} 22. Rh4 {[%emt 0:00:30]} Rxa2 {[%emt 0:00:30]} 23. Be4 {[%emt 0:00:30]} g6 {[%emt 0:00:30]} 24. Qd1 {[%emt 0:00:30]} Qa8 {[%emt 0:00:30]} 25. Qf3 {[%emt 0:00:30]} Ra1 {[%emt 0:00:30]} 26. Rxh7 {[%emt 0:00:30]} Rf8 {[%emt 0:00:30]} 27. Bxf8 {[%emt 0:00:30]} Rxb1+ {[%emt 0:00:30]} 28. Bxb1 {[%emt 0:00:30]} Qxf8 {[%emt 0:00:30]} 29. Rh4 {[%emt 0:00:30]} Qc5 {[%emt 0:00:30]} 30. Qd1 {[%emt 0:00:30]} Kg7 {[%emt 0:00:30]} 31. Be4 {[%emt 0:00:30]} Nxe5 {[%emt 0:00:30]} 32. Bg2 {[%emt 0:00:30]} Bd3 {[%emt 0:00:30]} 33. Rd4 {[%emt 0:00:30]} Qb5 {[%emt 0:00:30]} 34. Qd2 {[%emt 0:00:30]} Qa6 {[%emt 0:00:30]} 35. h3 {[%emt 0:00:30]} Be2 {[%emt 0:00:30]} 36. Qc3 {[%emt 0:00:30]} f6 {[%emt 0:00:30]} 37. e4 {[%emt 0:00:30]} Qa1+ {[%emt 0:00:30]} 38. Kh2 {[%emt 0:00:30]} Nf7 {[%emt 0:00:30]} 39. Rd7 {[%emt 0:00:30]} Qa6 {[%emt 0:00:30]} 40. Qb4 {[%emt 0:00:30]} e5 {[%emt 0:00:30]} 41. Qxb7 {[%emt 0:00:30]} Qc4 {[%emt 0:00:30]} 42. b3 {[%emt 0:00:30]} Qe6 {[%emt 0:00:30]} 43. Re7 {[%emt 0:00:30]} 1-0

[Event "3rd President Cup-A 2024"]
[Site "Tashkent"]
[Date "2024.11.25"]
[Round "5.22"]
[White "Shyaam Nikhil P"]
[Black "Akhilbay, Imangali"]
[Result "1/2-1/2"]
[ECO "C13"]
[WhiteElo "2445"]
[BlackElo "2306"]
[Annotator "RC"]
[PlyCount "44"]
[EventDate "2024.11.22"]
[EventType "swiss"]
[EventCountry "UZB"]
[SourceTitle "playchess.com"]
[Source "ChessBase"]
[SourceQuality "1"]
[TimeControl "5400+30"]

1. e4 {[%emt 0:00:36]} e6 {[%emt 0:00:42]} 2. d4 {[%emt 0:01:24]} d5 {[%emt 0:00:16]} 3. Nc3 {[%emt 0:00:21]} Nf6 {[%emt 0:00:12]} 4. Bg5 {[%emt 0:00:56]} dxe4 {[%emt 0:00:08]} 5. Nxe4 {[%emt 0:00:05]} Be7 {[%emt 0:00:05]} 6. Bxf6 {[%emt 0:03:35]} gxf6 {[%emt 0:00:11]} 7. Nf3 {[%emt 0:00:06]} f5 {[%emt 0:00:06]} 8. Ned2 {[%emt 0:04:41]} c5 {[%emt 0:00:07]} 9. dxc5 {[%emt 0:01:11]} Bxc5 {[%emt 0:03:00]} 10. Bb5+ {[%emt 0:00:25]} Bd7 {[%emt 0:05:57]} 11. Bxd7+ {[%emt 0:00:19]} Nxd7 {[%emt 0:00:06]} 12. Nb3 {[%emt 0:00:57]} Be7 {[%emt 0:00:31]} 13. O-O {[%emt 0:01:27]} O-O {[%emt 0:00:36]} 14. Qe2 {[%emt 0:01:25]} Bf6 {[%emt 0:03:21]} 15. Rad1 {[%emt 0:00:30]} Qc7 {[%emt 0:01:28]} 16. Rd3 {[%emt 0:00:39]} Rfd8 {[%emt 0:05:47]} 17. Rfd1 {[%emt 0:03:11]} Ne5 {[%emt 0:06:31]} 18. Rxd8+ {[%emt 0:06:00]} Rxd8 {[%emt 0:00:13]} 19. Rxd8+ {[%emt 0:00:06]} Qxd8 {[%emt 0:00:05]} 20. Nxe5 {[%emt 0:00:19]} Bxe5 {[%emt 0:00:06]} 21. c3 {[%emt 0:00:31]} Qd5 {[%emt 0:02:14]} 22. Nc1 {[%emt 0:04:10]} Qe4 {[%emt 0:07:02]} 1/2-1/2

[Event "3rd President Cup-A 2024"]
[Site "Tashkent"]
[Date "2024.11.25"]
[Round "5.23"]
[White "Ayush Sharma"]
[Black "Goltseva, Ekaterina"]
[Result "1-0"]
[ECO "A13"]
[WhiteElo "2464"]
[BlackElo "2378"]
[Annotator "RC"]
[PlyCount "119"]
[EventDate "2024.11.22"]
[EventType "swiss"]
[EventCountry "UZB"]
[SourceTitle "playchess.com"]
[Source "ChessBase"]
[SourceQuality "1"]
[TimeControl "5400+30"]

1. Nf3 {[%emt 0:10:41]} Nf6 {[%emt 0:00:32]} 2. c4 {[%emt 0:01:01]} e6 {[%emt 0:00:16]} 3. b3 {[%emt 0:00:12]} d5 {[%emt 0:00:52]} 4. Bb2 {[%emt 0:00:56]} c5 {[%emt 0:02:53]} 5. cxd5 {[%emt 0:00:16]} exd5 {[%emt 0:00:11]} 6. e3 {[%emt 0:00:08]} Nc6 {[%emt 0:00:57]} 7. Bb5 {[%emt 0:00:37]} Bd7 {[%emt 0:07:18]} 8. O-O {[%emt 0:00:10]} Bd6 {[%emt 0:00:24]} 9. Bxf6 {[%emt 0:00:09]} Qxf6 {[%emt 0:07:19]} 10. Nc3 {[%emt 0:00:05]} Qh6 {[%emt 0:13:08]} 11. Nxd5 {[%emt 0:04:55]} O-O-O {[%emt 0:16:39]} 12. Rc1 {[%emt 0:25:12]} Kb8 {[%emt 0:18:32]} 13. Nc3 {[%emt 0:20:00]} Bg4 {[%emt 0:05:39]} 14. h3 {[%emt 0:05:43]} Ne5 {[%emt 0:01:36]} 15. Be2 {[%emt 0:01:31]} Nxf3+ {[%emt 0:02:58]} 16. Bxf3 {[%emt 0:00:05]} Bxh3 {[%emt 0:00:04]} 17. Re1 {[%emt 0:00:09]} Bf5 {[%emt 0:01:14]} 18. g3 {[%emt 0:00:05]} Qg6 {[%emt 0:01:00]} 19. e4 {[%emt 0:03:51]} Be6 {[%emt 0:07:40]} 20. e5 {[%emt 0:02:52]} Be7 {[%emt 0:00:20]} 21. Ne4 {[%emt 0:05:39]} h5 {[%emt 0:01:19]} 22. Nxc5 {[%emt 0:01:09]} Bxc5 {[%emt 0:00:32]} 23. Rxc5 {[%emt 0:00:06]} h4 {[%emt 0:01:03]} 24. Bxb7 {[%emt 0:04:53]} hxg3 {[%emt 0:01:34]} 25. Bg2 {[%emt 0:00:59]} gxf2+ {[%emt 0:01:25]} 26. Kxf2 {[%emt 0:00:02]} Qd3 {[%emt 0:01:36]} 27. Qf3 {[%emt 0:04:41]} Qxf3+ {[%emt 0:00:29]} 28. Bxf3 {[%emt 0:00:02]} a6 {[%emt 0:01:22]} 29. Ke3 {[%emt 0:04:45]} Rh3 {[%emt 0:00:18]} 30. Rh1 {[%emt 0:00:31]} Rxf3+ {[%emt 0:01:13]} 31. Kxf3 {[%emt 0:00:04]} Bd5+ {[%emt 0:00:04]} 32. Rxd5 {[%emt 0:00:04]} Rxd5 {[%emt 0:00:03]} 33. Rh8+ {[%emt 0:01:08]} Kc7 {[%emt 0:00:40]} 34. Rf8 {[%emt 0:00:25]} Rxe5 {[%emt 0:03:43]} 35. Rxf7+ {[%emt 0:00:11]} Kc6 {[%emt 0:00:06]} 36. Rxg7 {[%emt 0:00:22]} Ra5 {[%emt 0:01:14]} 37. Rg6+ {[%emt 0:00:16]} Kb7 {[%emt 0:00:07]} 38. a4 {[%emt 0:00:08]} Re5 {[%emt 0:00:37]} 39. b4 {[%emt 0:02:31]} Re1 {[%emt 0:00:47]} 40. a5 {[%emt 0:00:10]} Rb1 {[%emt 0:00:45]} 41. Rb6+ {[%emt 0:00:15]} Kc7 {[%emt 0:00:03]} 42. Ke4 {[%emt 0:00:12]} Kd7 {[%emt 0:00:23]} 43. d4 {[%emt 0:00:26]} Rb3 {[%emt 0:00:29]} 44. Kd5 {[%emt 0:00:14]} Rb1 {[%emt 0:00:23]} 45. Kc4 {[%emt 0:00:16]} Rc1+ {[%emt 0:00:19]} 46. Kd3 {[%emt 0:00:04]} Rd1+ {[%emt 0:00:38]} 47. Kc3 {[%emt 0:00:06]} Rc1+ {[%emt 0:00:08]} 48. Kd2 {[%emt 0:00:04]} Rc8 {[%emt 0:00:50]} 49. Kd3 {[%emt 0:00:15]} Ra8 {[%emt 0:00:14]} 50. d5 {[%emt 0:00:10]} Kc7 {[%emt 0:00:09]} 51. Kd4 {[%emt 0:00:06]} Kd7 {[%emt 0:00:08]} 52. Rh6 {[%emt 0:01:38]} Rb8 {[%emt 0:00:35]} 53. Rxa6 {[%emt 0:00:09]} Rxb4+ {[%emt 0:00:03]} 54. Ke5 {[%emt 0:00:04]} Rh4 {[%emt 0:00:33]} 55. Ra7+ {[%emt 0:00:11]} Kc8 {[%emt 0:00:17]} 56. a6 {[%emt 0:00:35]} Rh5+ {[%emt 0:01:37]} 57. Kd6 {[%emt 0:00:06]} Kb8 {[%emt 0:01:00]} 58. Rb7+ {[%emt 0:00:07]} Ka8 {[%emt 0:00:11]} 59. Re7 {[%emt 0:00:04]} Rh6+ {[%emt 0:00:27]} 60. Re6 {[%emt 0:00:10]} 1-0